[Event "7th Porticcio Open 2022"]
[Site "Porticcio"]
[Date "2022.07.03"]
[Round "3.5"]
[White "Virtanen, Antti"]
[Black "Can, Isik"]
[Result "0-1"]
[ECO "D10"]
[WhiteElo "2270"]
[BlackElo "2445"]
[Annotator "TA"]
[PlyCount "50"]
[EventDate "2022.07.02"]
[EventType "swiss"]
[EventCountry "FRA"]
[SourceTitle "playchess.com"]
[Source "ChessBase"]
[SourceQuality "1"]
[TimeControl "5400+30"]

{[%evp 13,50,4,4,0,0,0,0,0,0,0,0,14,11,8,17,0,0,-58,-46,-53,-73,-96,-90,-104,-104,-154,-156,-168,-174,-240,-193,-634,-595,-558,-566,-547,-540,-1506,-1485]} 1. d4 {[%emt 0:00:04]} d5 {[%emt 0:02:45]} 2. c4 {[%emt 0:00:05]} c6 {[%emt 0:00:04]} 3. Nc3 {[%emt 0:00:17]} Nf6 {[%emt 0:00:45]} 4. cxd5 {[%emt 0:00:20]} cxd5 {[%emt 0:00:05]} 5. Bf4 {[%emt 0:00:08]} Nc6 {[%emt 0:00:19]} 6. e3 {[%emt 0:00:07]} Bf5 {[%emt 0:00:08]} 7. Qb3 {[%emt 0:00:16]} Na5 $1 {[%emt 0:00:12]} 8. Qa4+ {[%emt 0:00:06] D10: Slav Defence: 3 cxd5 (without early Nf3) and 3 Nc3.} Bd7 {[%emt 0:00:06]} 9. Qc2 {[%emt 0:00:06]} Rc8 {[%emt 0:00:51]} 10. Nf3 {[%emt 0:00:28] The position is equal.} e6 {[%emt 0:00:23]} 11. Bd3 {[%emt 0:01:21]} Bb4 $1 {[%emt 0:01:55][%cal Of6e4][%mdl 4] is now more promising than 11...Be7.} 12. O-O {[%emt 0:02:40]} Nh5 {[%emt 0:01:16]} 13. Bg5 {[%emt 0:06:02]} f6 {[%emt 0:01:09][%cal Bf7f6,Bf6f5][%mdl 32]} 14. Bh4 {[%emt 0:00:11]} (14. Bxh7 {looks sharper.} Nc4 15. Bg6+ Kf8 16. Bh4) 14... g5 {[%emt 0:01:00][%cal Bg7g5,Bg5g4][%mdl 32]} 15. Bg3 {[%emt 0:01:10]} (15. g4 $1 $11) 15... Nxg3 $15 {[%emt 0:26:22]} 16. hxg3 {[%emt 0:01:28]} g4 $1 {[%emt 0:03:26]} 17. Nd2 {[%emt 0:21:33] [#]} f5 $1 {[%emt 0:03:27] [#] Inhibits e4.} 18. a3 $146 {[%emt 0:00:38]} ({Predecessor:} 18. Rfc1 h5 19. Qd1 h4 20. Nf1 Bd6 21. Ne2 Rxc1 22. Rxc1 Qf6 23. Qd2 Nc6 24. Bb5 Qh6 25. gxh4 Qxh4 26. Nfg3 Kf7 27. a4 a6 {½-½ (27) Finek,V (2408)-Nguyen,H (2419) Budapest 2021}) 18... Bd6 {[%emt 0:02:43]} 19. Qd1 {[%emt 0:15:05] [#]} (19. Rfe1 $142) 19... h5 $1 $17 {[%emt 0:01:19][%cal Bh7h5,Bh5h4][%mdl 32]} 20. Ne2 {[%emt 0:01:52]} h4 {[%emt 0:01:00]} 21. Nf4 {[%emt 0:01:11]} (21. Rc1 {was necessary.}) 21... Qf6 $19 {[%emt 0:02:13]} 22. Re1 $2 {[%emt 0:07:08]} (22. Rc1) 22... hxg3 {[%emt 0:02:13] Black is clearly winning.} 23. fxg3 {[%emt 0:00:08]} Bxf4 {[%emt 0:00:04]} ({Not} 23... Qh6 24. Kf2 $17) 24. gxf4 {[%emt 0:00:17]} Qh4 {[%emt 0:00:16] ( -> ...g3)} 25. Kf1 {[%emt 0:03:22]} Qg3 {[%emt 0:00:07] Weighted Error Value: White=0.71/Black=0.00 (flawless)} 0-1

[Event "7th Porticcio Open 2022"]
[Site "Porticcio"]
[Date "2022.07.03"]
[Round "3.6"]
[White "Maugenest, Ghislain"]
[Black "Trent, Lawrence"]
[Result "1-0"]
[ECO "E81"]
[WhiteElo "2203"]
[BlackElo "2404"]
[Annotator "TA"]
[PlyCount "119"]
[EventDate "2022.07.02"]
[EventType "swiss"]
[EventCountry "FRA"]
[SourceTitle "playchess.com"]
[Source "ChessBase"]
[SourceQuality "1"]
[TimeControl "5400+30"]

{[%evp 24,119,38,44,45,34,53,37,124,125,127,137,163,67,72,81,101,127,133,131,254,279,329,340,342,207,256,174,287,273,267,254,488,116,93,30,225,236,239,227,231,223,206,141,377,310,714,362,676,369,583,91,118,43,46,35,189,190,188,137,306,318,314,281,430,401,617,617,617,617,617,617,617,617,617,616,616,614,613,613,613,591,889,894,887,875,818,752,736,732,811,777,735,727,2020,1751,1193,1133]} 1. d4 {[%emt 0:00:07] Krasenkow,Michal} Nf6 {[%emt 0:00:05]} 2. c4 {[%emt 0:00:17]} g6 {[%emt 0:00:50]} 3. Nc3 {[%emt 0:00:36]} Bg7 {[%emt 0:00:13]} 4. e4 {[%emt 0:00:39]} d6 {[%emt 0:00:05]} 5. f3 {[%emt 0:01:10]} O-O {[%emt 0:02:57]} 6. Nge2 {[%emt 0:00:20]} c5 {[%emt 0:00:26]} 7. d5 {[%emt 0:00:32]} e6 {[%emt 0:00:57]} 8. Ng3 {[%emt 0:00:44]} exd5 {[%emt 0:00:08]} 9. cxd5 {[%emt 0:00:30]} h5 {[%emt 0:02:09]} 10. Be2 {[%emt 0:04:34]} Nh7 {[%emt 0:03:25]} 11. Be3 {[%emt 0:17:06]} Nd7 {[%emt 0:03:01]} 12. O-O {[%emt 0:04:53]} Ne5 {[%emt 0:00:52]} 13. Qd2 {[%emt 0:01:53]} h4 {[%emt 0:02:01] A65: Modern Benoni: 6 e4.} 14. Nh1 {[%emt 0:00:10]} f5 {[%emt 0:00:03]} 15. Nf2 {[%emt 0:02:25] [#]} f4 $146 {[%emt 0:08:23]} ({Black should try} 15... a6 $14) ({Predecessor:} 15... Bd7 16. a4 Qf6 17. exf5 gxf5 18. Nh3 Ng6 19. f4 a6 20. Bf2 Rae8 21. Kh1 Rf7 {1-0 (42) Tomashevsky,E (2701)-Khairullin,I (2617) Rijeka 2010 CBM 136 [Krasenkow,Michal]}) 16. Bxf4 $16 {[%emt 0:02:22]} g5 {[%emt 0:00:03]} 17. Be3 {[%emt 0:03:51]} h3 {[%emt 0:00:43]} 18. f4 {[%emt 0:21:38]} (18. Nxh3 $18 Bxh3 19. gxh3) 18... gxf4 $14 {[%emt 0:22:06]} 19. Bxf4 {[%emt 0:00:17]} Ng6 {[%emt 0:03:12]} 20. Bg3 {[%emt 0:04:13]} (20. Nxh3 Bxh3 21. Bg3 (21. gxh3 $2 Nxf4 22. Bg4 Qg5 $19) 21... Bc8 22. Rxf8+ Qxf8 $17) 20... hxg2 {[%emt 0:16:17]} 21. Kxg2 {[%emt 0:00:22]} Nh4+ {[%emt 0:00:09]} (21... Qe7 $16 22. Kh1 Bd7) 22. Kh1 $18 {[%emt 0:01:41]} Nf3 {[%emt 0:04:38]} 23. Bxf3 {[%emt 0:05:25]} Rxf3 {[%emt 0:00:03]} 24. e5 {[%emt 0:01:03]} dxe5 {[%emt 0:01:21]} 25. Nfe4 {[%emt 0:00:23] Inhibits Qg5.} Bg4 {[%emt 0:01:12]} (25... Rxf1+ $142 26. Rxf1 Bh3) 26. Qg2 $1 {[%emt 0:03:13]} (26. Nxc5 Qf8 27. Qg2 (27. Bf2 $2 Qf5 $19) 27... Rxf1+ 28. Rxf1 Qxc5 $17) 26... Rxf1+ {[%emt 0:08:33]} 27. Rxf1 {[%emt 0:00:06][%cal Ba1f1,Bf1f5,Bf5f2,Bf2g2][%mdl 32]} Qc8 $2 {[%emt 0:00:02] [#]} (27... Qe7 28. Bf2 Bf5) 28. Qg1 $2 {[%emt 0:08:54]} (28. Qf2 Qe8 $16) (28. Rf7 $3 $18 {[%mdl 512] is the precise move to win.}) 28... b6 $16 {[%emt 0:07:29]} 29. h3 {[%emt 0:07:03] 0x0.00207cef6d2bdp-1022s more active pieces. The black rooks are badly placed.} (29. Qf2 Qd7 $11) (29. Bh4 $16 {Strongly threatening Qg3.} Qd7 30. Be7 $1 {[%mdl 512]}) 29... Bh5 $2 {[%emt 0:01:29]} (29... Bxh3 $11 {and Black is okay.} 30. Bxe5 Qg4) 30. Kh2 $1 $18 {[%emt 0:00:15]} Kh8 {[%emt 0:02:29]} 31. Bh4 {[%emt 0:02:33] Nf6 is the strong threat.} Qg8 {[%emt 0:10:39]} 32. Rf5 {[%emt 0:07:15]} Bf7 {[%emt 0:00:00]} 33. d6 {aiming for d7.} Qe8 (33... Be8 $16) 34. Qd1 {[%emt 0:00:23]} Be6 {[%emt 0:00:00]} (34... Qe6) 35. Rf2 {[%emt 0:00:28]} Nf8 $2 {[%emt 0:01:12]} (35... a5 36. Nd5 Qg6) 36. Rg2 {[%emt 0:00:20]} Nd7 {[%emt 0:00:25]} (36... Qf7 {might work better.} 37. Rf2 Qg6) 37. Qg1 $2 {[%emt 0:00:42]} (37. Nd5 $18 {is more deadly.} Bxd5 38. Qxd5) 37... Qf7 {[%emt 0:00:47]} 38. Bg5 {[%emt 0:00:28] Against Qf4+} (38. Rg3 $16 {Threatens to win with Ng5.} Bh6 39. Bg5) 38... Rf8 $1 $14 {[%emt 0:00:22]} 39. Rg3 {[%emt 0:00:28] Black must now prevent Be7.} Qh5 $2 {[%emt 0:00:14] White leaves nothing to chance now.} (39... Qf1 $1 $14) 40. Qg2 $1 $18 {[%emt 0:00:31]} Rf7 {[%emt 0:00:32]} 41. Be3 {[%emt 0:00:22]} (41. Bc1 $18) 41... Bf5 $2 {[%emt 0:00:33]} (41... Bh6 $16 {was necessary.}) 42. Ng5 {[%emt 0:00:32]} Rf8 {[%emt 0:00:19] [#]} 43. Nd5 {[%emt 0:00:33]} e4 {[%emt 0:00:50]} (43... Qd1 {was worth a try.} 44. Bd2 e4) 44. Nf4 {[%emt 0:00:26] Pair of Knights!} Qh6 {[%emt 0:00:35] [#]} (44... Qe8 $142 45. Nge6 Bf6) 45. Nfe6 $1 {[%emt 0:00:38][%mdl 512] White is clearly winning.} Bxe6 {[%emt 0:00:38] [#]} 46. Nf7+ {[%emt 0:00:05][%mdl 576] Discovered Attack} Bxf7 {[%emt 0:00:01]} 47. Bxh6 {[%emt 0:00:06]} Bxh6 {[%emt 0:00:00]} 48. Qxe4 {[%emt 0:00:26]} Re8 {[%emt 0:00:46]} 49. Qf5 {[%emt 0:00:42]} ({Not} 49. Qh4 Re6 50. Rg4 Ne5 51. Qd8+ Kh7 $16) 49... Re2+ {[%emt 0:01:12]} 50. Rg2 Be6 {[#]} 51. Qg6 {[%emt 0:01:47][%cal Rg6h6]} ({Weaker is} 51. Qh5 Rxg2+ 52. Kxg2 Kg7 $14) 51... Bf4+ {[%emt 0:00:25]} 52. Kg1 {[%emt 0:00:15][%csl Gg2][%cal Rg6g7]} Rxg2+ {[%emt 0:00:11]} 53. Kxg2 {[%emt 0:00:15]} Bd5+ {[%emt 0:00:26]} 54. Kf2 {[%emt 0:00:32]} Ne5 {[%emt 0:00:26]} 55. Qe8+ {[%emt 0:00:39]} Kg7 {[%emt 0:00:22]} 56. d7 {[%emt 0:00:12]} Nf7 {[%emt 0:00:49]} 57. d8=Q {[%emt 0:01:02]} Nxd8 {[%emt 0:00:01]} 58. Qxd8 {[%emt 0:00:10]} Bxa2 {[%emt 0:00:06]} 59. Qd7+ {[%emt 0:00:20]} Kf6 {[%emt 0:00:04]} 60. Qa4 {[%emt 0:00:05] Weighted Error Value: White=0.62/Black=0.71} 1-0

[Event "7th Porticcio Open 2022"]
[Site "Porticcio"]
[Date "2022.07.03"]
[Round "3.7"]
[White "Bhawoodien, Mohamed Ozayr"]
[Black "Droin, Augustin"]
[Result "0-1"]
[ECO "B32"]
[WhiteElo "2182"]
[BlackElo "2391"]
[Annotator "TA"]
[PlyCount "124"]
[EventDate "2022.07.02"]
[EventType "swiss"]
[EventCountry "FRA"]
[SourceTitle "playchess.com"]
[Source "ChessBase"]
[SourceQuality "1"]
[TimeControl "5400+30"]

{[%evp 13,124,43,69,54,85,70,110,86,73,69,90,70,68,68,73,81,72,64,96,101,102,87,111,102,97,87,107,77,83,36,87,97,219,237,220,226,232,231,218,231,208,214,213,262,237,204,223,131,112,0,66,94,34,-43,0,-279,-273,-470,-239,-445,-382,-347,696,722,640,540,533,541,534,225,234,91,188,0,0,0,26,0,0,0,0,0,0,0,0,0,0,-321,-205,-325,-280,-435,-308,-29973,-29974,-29974,-29975,-29979,-29978,-29977,-631,-29967,-29967,-5624,-1100,-29984,-29985,-29985,-29985,-29985,-29986,-29983,-29975]} 1. e4 {[%emt 0:01:46]} c5 {[%emt 0:00:04]} 2. Nf3 {[%emt 0:00:34]} Nc6 {[%emt 0:00:21]} 3. d4 {[%emt 0:00:10]} cxd4 {[%emt 0:00:04]} 4. Nxd4 {[%emt 0:00:07]} Qb6 {[%emt 0:00:07]} 5. Nb3 {[%emt 0:00:10]} Nf6 {[%emt 0:00:04]} 6. Nc3 {[%emt 0:00:05]} e6 {[%emt 0:00:02]} 7. a3 {[%emt 0:00:10]} a6 {[%emt 0:00:40]} 8. Bf4 {[%emt 0:00:20] B33: Sicilian: Pelikan and Sveshnikov Variations.} e5 {[%emt 0:14:06]} 9. Be3 {[%emt 0:00:17]} Qd8 {[%emt 0:00:33]} 10. g4 {[%emt 0:08:37] White is better.} h6 {[%emt 0:05:36] [#]} 11. Rg1 $146 {[%emt 0:02:54]} ({Predecessor:} 11. f3 d6 12. Qd2 Be6 13. Nd5 Bxd5 14. exd5 Ne7 15. c4 Ng6 16. Be2 Be7 17. O-O-O {½-½ (27) Perez Gonzalez,J (2340)-Gallego Jimenez,V (2362) Madrid 2016}) 11... d6 {[%emt 0:01:26]} 12. h4 {[%emt 0:07:11]} Be6 {[%emt 0:00:38]} 13. g5 {[%emt 0:00:28]} hxg5 {[%emt 0:00:40]} 14. hxg5 {[%emt 0:00:06]} Nd7 {[%emt 0:00:06]} 15. Nd5 {[%emt 0:04:43]} Ne7 {[%emt 0:08:42]} 16. Qf3 {[%emt 0:11:46]} Rh4 {[%emt 0:02:54]} 17. O-O-O {[%emt 0:07:09]} Rc8 {[%emt 0:10:53]} 18. Rd2 {[%emt 0:03:39]} Bxd5 {[%emt 0:07:07]} 19. exd5 {[%emt 0:00:12]} e4 {[%emt 0:00:15]} 20. Qd1 {[%emt 0:08:48] And now Rg4 would win.} Ne5 {[%emt 0:01:04] Against Rg4} 21. Be2 {[%emt 0:01:05] Prevents Nf3.} (21. Nd4 $16) 21... Nf5 {[%emt 0:02:56]} (21... g6 $1 $14) 22. g6 $1 $16 {[%emt 0:04:50]} f6 {[%emt 0:13:50]} (22... fxg6 $16 {was necessary.} 23. Bg5 Be7 24. Bxh4 Bxh4) 23. Nd4 $18 {[%emt 0:05:39]} Nxd4 {[%emt 0:00:05]} 24. Rxd4 {[%emt 0:00:22]} f5 {[%emt 0:03:23]} 25. Bg5 {[%emt 0:04:54]} Be7 {[%emt 0:00:04]} 26. Bxh4 {[%emt 0:00:07]} Bxh4 {[%emt 0:00:03]} 27. Rh1 {[%emt 0:01:19]} Qg5+ {[%emt 0:03:18]} 28. Kb1 $1 {[%emt 0:04:14]} ({Stronger than} 28. Qd2 Qxd2+ 29. Kxd2 Bxf2 $11) 28... Bxf2 {[%emt 0:00:35]} 29. Rb4 {[%emt 0:00:31]} Rc7 {[%emt 0:00:44]} 30. Rh5 {[%emt 0:02:26]} (30. Qf1 $1 $18 {[%cal Rf1f2]} Bh4 31. Rb3) 30... Qf4 $16 {[%emt 0:03:19]} (30... Qxg6 $2 31. Qf1 Bc5 32. Rxe4 $3 {[%mdl 512]} (32. Rb3 Qg1 $16)) 31. Qf1 {[%emt 0:05:39]} (31. Qc1 $16 Be3 32. Qf1 Qxf1+ 33. Bxf1) 31... Nxg6 {[%emt 0:02:09]} (31... Ke7 $11) 32. Qh3 $36 {[%emt 0:00:37][%mdl 2048] Black is under strong pressure.} Nh4 {[%emt 0:00:34]} 33. Qb3 {[%emt 0:01:48]} (33. Rb3 $14) 33... b5 $15 {[%emt 0:01:23] aiming for ...Qd2. Active counter play!} 34. a4 $2 {[%emt 0:02:11][%mdl 8192]} (34. Qh3 $11) 34... Qd2 $19 {[%emt 0:00:31] Really sharp!} 35. Rh8+ $2 {[%emt 0:00:57]} (35. Rxf5 {was forced.} Nxf5 36. Rxe4+ Kd8 37. Qd3) 35... Ke7 {[%emt 0:00:54]} (35... Kf7 $142 36. axb5 Qxe2) 36. Bh5 {[%emt 0:01:27]} (36. Rxe4+ {was the only defense.} fxe4 37. Qh3 Qxd5 38. Qg4) 36... Qe1+ {[%emt 0:02:32]} 37. Ka2 {[%emt 0:00:08][%cal Ob4e4]} Bc5 $4 {[%emt 0:00:01][%mdl 8192] [#]} (37... Kf6 $19 38. c3 (38. axb5 $2 axb5 39. Rf8+ Kg5 $19) 38... Bc5) 38. Rxe4+ $3 $18 {[%emt 0:02:20][%mdl 512]} Qxe4 {[%emt 0:01:51]} 39. Re8+ {[%emt 0:00:08]} Kf6 {[%emt 0:00:02]} 40. Rxe4 {[%emt 0:00:17]} fxe4 {[%emt 0:00:09]} 41. Qh3 {[%emt 0:02:59]} (41. Qg3 $142 g5 42. Qc3+ Kf5 43. Qh3+ Kf6 44. Qe6+ Kg7 45. Qxe4) 41... Nf5 {[%emt 0:00:51]} 42. Bg4 {[%emt 0:00:20]} (42. Qg4 $18 {has better winning chances.} g5 43. Qxe4) 42... g6 $16 {[%emt 0:02:19]} 43. Qh8+ $2 {[%emt 0:03:09]} ({White should play} 43. Bxf5 $18 gxf5 44. Qc3+ Kg5 45. b4) 43... Kg5 $11 {[%emt 0:00:03]} 44. Bxf5 {[%emt 0:01:21]} Kxf5 {[%emt 0:00:04][%mdl 4096] Endgame KQ-KRB} 45. Qe8 {[%emt 0:00:22]} bxa4 {[%emt 0:03:16]} 46. Qe6+ {[%emt 0:00:37]} Kf4 {[%emt 0:00:03]} 47. Qxg6 {[%emt 0:00:39]} e3 {[%emt 0:00:16]} 48. Qf6+ {[%emt 0:01:36]} Kg3 {[%emt 0:00:42]} 49. Qg5+ {[%emt 0:00:41]} Kf2 {[%emt 0:01:31] ...Rb7 is the strong threat.} 50. Qf4+ $2 {[%emt 0:00:33][%mdl 8192]} (50. Qh4+ $11 {and White is okay.} Ke2 51. Qxa4) 50... Ke1 $19 {[%emt 0:00:10]} 51. Qh4+ {[%emt 0:02:32]} (51. Kb1 {was the only chance.} Rg7 52. b4 axb3 53. Kb2) 51... Kd2 {[%emt 0:00:08] Strongly threatening ...e2.} 52. Qf4 {[%emt 0:00:57]} (52. Qc4 {was called for.} Rf7 53. Qd3+ Ke1 54. Qc3+ Kf2 55. Qc4) 52... Rg7 {[%emt 0:02:05]} 53. b4 $2 {[%emt 0:00:21]} (53. Qf6 $19 e2 54. Qc3+ Kd1 55. Qd3+ Ke1 56. Qc3+ Kf1 57. Qf6+ Bf2 58. Qxg7) 53... axb3+ $1 {[%emt 0:00:03]} 54. cxb3 {[%emt 0:00:23]} Rg2 {[%emt 0:00:17]} 55. b4 {[%emt 0:00:12]} Kc3+ {[%emt 0:00:45]} 56. Ka3 {[%emt 0:00:09] [#]} Bd4 {[%emt 0:00:03]} (56... Rg1 $142 $1 57. Ka2 e2 58. Qf3+ Kd2 59. Qf4+ Be3 60. Qh2 Kd3 61. Qh7+ Kc3 62. Qh8+ Kc4 63. Qc8+ Kd3 64. Kb3 Rb1+ 65. Ka2 Rg1 66. Kb3 Rb1+ 67. Ka2 Rg1) 57. Qxd6 {[%emt 0:01:21]} e2 {[%emt 0:02:00]} 58. Qe6 {[%emt 0:00:27]} Rg1 {[%emt 0:01:22]} (58... Kd2 $142 59. Qh6+ Be3) 59. Qc8+ {[%emt 0:00:37]} Kd2 {[%emt 0:00:45] Black mates.} 60. Qc4 {[%emt 0:00:18]} Rg3+ {[%emt 0:00:56]} 61. Ka4 {[%emt 0:00:15]} Bb2 {[%emt 0:01:11][%csl Gb2][%cal Rg3a3]} 62. Qf4+ {[%emt 0:00:43]} Re3 {[%emt 0:00:07] Quite a comeback for Black.  Weighted Error Value: White=0.86/Black=0.56} 0-1

[Event "7th Porticcio Open 2022"]
[Site "Porticcio"]
[Date "2022.07.03"]
[Round "3.8"]
[White "Suarez Uriel, Adrian"]
[Black "Lafourcade, Victor"]
[Result "1-0"]
[ECO "B81"]
[WhiteElo "2386"]
[BlackElo "2006"]
[Annotator "TA"]
[PlyCount "49"]
[EventDate "2022.07.02"]
[EventType "swiss"]
[EventCountry "FRA"]
[SourceTitle "playchess.com"]
[Source "ChessBase"]
[SourceQuality "1"]
[TimeControl "5400+30"]

{[%evp 14,49,38,34,80,61,83,79,83,88,82,75,102,62,118,124,144,124,378,392,387,377,391,391,299,213,380,366,378,351,1437,717,903,795,29982,29981,29990,1556]} 1. e4 {[%emt 0:00:04]} c5 {[%emt 0:01:50]} 2. Nf3 {[%emt 0:00:06]} e6 {[%emt 0:00:33]} 3. d4 {[%emt 0:00:06]} cxd4 {[%emt 0:00:04]} 4. Nxd4 {[%emt 0:00:04]} Nf6 {[%emt 0:00:05]} 5. Nc3 {[%emt 0:00:05]} d6 {[%emt 0:00:08]} 6. g4 {[%emt 0:00:05]} h6 {[%emt 0:02:35]} 7. Rg1 {[%emt 0:00:39]} Nc6 {[%emt 0:00:26]} 8. Be3 $1 {[%emt 0:00:06] 8.Be3 is better than 8.h4.} d5 {[%emt 0:03:40] B81: Sicilian Scheveningen: Keres Attack.} (8... Bd7 $14 {is more appropriate.}) 9. Bb5 $16 {[%emt 0:00:05] Strongly threatening exd5.} Bd7 {[%emt 0:06:05]} 10. exd5 $1 {[%emt 0:00:06]} Nxd5 {[%emt 0:04:12] White is better.} 11. Nxd5 {[%emt 0:00:05]} exd5 {[%emt 0:00:05]} 12. Qe2 {[%emt 0:00:33]} Be7 {[%emt 0:13:29]} 13. O-O-O {[%emt 0:01:01] [#] And now Nf5 would win.} O-O $146 {[%emt 0:06:23]} ({Black should play} 13... a6 $14 14. Nxc6 bxc6) ({Predecessor:} 13... a6 14. Bd3 Nb4 15. a3 Nxd3+ 16. Qxd3 Kf8 17. Nf5 Be6 18. Nxe7 Qxe7 19. f4 Bd7 {1-0 (54) Fraczek,W (1830)-Kindler,K (1805) Sypniewo 2021}) 14. Nf5 $1 {[%emt 0:11:32] White is more active.} Bxf5 {[%emt 0:06:17]} 15. gxf5 {[%emt 0:00:04]} Kh7 {[%emt 0:00:45][%mdl 8192]} (15... Bf6 $16) 16. Bd3 $18 {[%emt 0:46:11] f6+ would kill now.} ({Less strong is} 16. Qg4 Bf6 $14) 16... Bf6 {[%emt 0:04:42] [#]} 17. Rxg7+ $3 {[%emt 0:00:34][%mdl 512]} Kxg7 {[%emt 0:05:56]} 18. Rg1+ {[%emt 0:00:04]} Bg5 {[%emt 0:05:48]} 19. h4 {[%emt 0:03:43][%mdl 64] Pin} f6 {[%emt 0:05:00]} (19... Nd4 20. Qh5 Kf6 21. Bxg5+ hxg5 22. Re1 Ne6 23. Rxe6+ fxe6 24. Qxg5+ Ke5 25. Qg3+ Kf6 26. Qg6+ Ke5 27. Qxe6+ Kf4 28. Qe3+ Kg4 29. Qg3+ Kh5 30. Be2+ Kh6 31. Qg6#) (19... Re8) 20. hxg5 {[%emt 0:00:01]} hxg5 {[%emt 0:02:01]} 21. f4 {[%emt 0:05:36][%cal Rf4g5]} ({Stronger than} 21. Qh5 Qe8 22. Rxg5+ fxg5 $11) 21... d4 $2 {[%emt 0:06:24] [#]} (21... Rh8 22. fxg5 Kf7) 22. Bd2 {[%emt 0:00:01]} (22. fxg5 $142 $1 Rg8 {[#]} 23. Qh5 $1) 22... Qe8 {[%emt 0:01:00]} 23. Qg2 {[%emt 0:00:05]} Qh5 {[%emt 0:11:05]} 24. fxg5 {[%emt 0:00:32]} fxg5 {[%emt 0:00:14]} 25. Rh1 {[%emt 0:00:08] Black got outplayed after the opening.  Weighted Error Value: White=0.10 (very precise) /Black=1.08} (25. Bxg5 $142 Rxf5 26. Bxf5 Kf8 27. Rh1 Re8 28. Rxh5 Re1+ 29. Kd2 Ne7 30. Rh8+ Ng8 31. Rxg8+ Kxg8 32. Bh6+ Kf7 33. Qg7+ Ke8 34. Qf8#) 1-0